Workbook

Sheet 제1회 심의 사업내용 포함
A1: 제 1회 예천군 보조금심의위원회 심의결과
H2: (단위 : 천원)
A3: 부서명 | B3: 보 조 사 업 명 | C3: 보 조 사 업 자 | D3: 사업기간 | E3: 계 | F3: 보조금 | G3: 자부담 | H3: 사 업 내 용
A4: 계 | B4: 63건 | E4: =SUM(E5,E7,E26,E30,E35,E39,E44,E50,E75) -> 1,461,375 | F4: 1,347,230 | G4: 114,145
A5: 기획감사실 소계 | B5: 1건 | E5: =SUM(E6) -> 40,000 | F5: 40,000 | G5: 0
A6: 기획감사실 | B6: 군정 권장사업추진 경비지원 | C6: 군이 권장하는 사업을 추진하는 단체 | D6: 2015 | E6: 40,000 | F6: 40,000 | G6: 0 | H6: 문화,예술,체육진흥사업 농업,축산업,지역경기 등 지역발전사업 주민복지,봉사활동 지원 등 사업
A7: 주민복지과 소계 | B7: 18건 | E7: =SUM(E8:E25) -> 232,895 | F7: 195,000 | G7: 37,895
A8: 주민복지과 | B8: 상이군경회 운영비 지원 | C8: 대한민국 상이군경회 경상북도지부 예천군지회 | D8: 2015 | E8: 13,000 | F8: 13,000 | G8: 0 | H8: 전적지 순례 : 4,300 지도원회의비 및 출장여비 : 2,820 사무실운영비 : 1,380 인건비 : 4,200 건강교실 재료비 : 300
A9: 주민복지과 | B9: 전몰군경유족회 운영비 지원 | C9: 대한민국 전몰군경유족회 경상북도지부 예천군지회 | D9: 2015 | E9: 13,000 | F9: 13,000 | G9: 0 | H9: 전적지 순례 등 : 3,890 지회운영비 : 4,910 인건비 : 4,200
A10: 주민복지과 | B10: 전몰군경미망인회 운영비 지원 | C10: 대한민국 전몰군경미망인회 경상북도지부 예천군지회 | D10: 2015 | E10: 13,000 | F10: 13,000 | G10: 0 | H10: 전적지 순례 : 4,020 회의비 및 출장여비 : 2,590 지회운영비 및 인건비 : 6,110 여성 및 안보 단체협의회 : 280
A11: 주민복지과 | B11: 무공수훈자회 운영비 지원 | C11: 대한민국 무공수훈자회 예천군지회 | D11: 2015 | E11: 13,000 | F11: 13,000 | G11: 0 | H11: 공공요금 및 일반유지비 : 4,460 행사여비 : 2,240 전적지 순례 및 안보행사 : 1,500 사무원활동비 : 4,800
A12: 주민복지과 | B12: 6.25참전유공자회 운영비 지원 | C12: 대한민국 6.25참전 유공자회 경상북도지부 예천군지회 | D12: 2015 | E12: 13,000 | F12: 13,000 | G12: 0 | H12: 공공요금 및 일반운영비 : 4,540 여비 및 인건비 : 6,600 안보행사비 : 1,860
A13: 주민복지과 | B13: 월남참전유공자회 운영비 지원 | C13: (사)대한민국 베트남참전 유공전우회 경상북도지부 예천군지회 | D13: 2015 | E13: 8,000 | F13: 8,000 | G13: 0 | H13: 공공요금 및 일반운영비 : 3,750 행사경비 : 4,250
A14: 주민복지과 | B14: 장애인의 날 행사지원 | C14: 예천군 장애인협회 | D14: 2015 | E14: 18,560 | F14: 10,000 | G14: 8,560 | H14: 홍보비 : 2,800 행사비 : 7,200
A15: 주민복지과 | B15: 관학연계 이동복지관사업 | C15: 예천군노인복지관 | D15: 2015 | E15: 23,000 | F15: 23,000 | G15: 0 | H15: 여가지원교실 : 16,000 가요발표회 : 3,000 개강/수료식 : 1,500 자원연계교실 : 1,400 간담회 등 각종 행사 : 1,100
A16: 주민복지과 | B16: 할매·할배의날 행사 | C16: 보문면 체육회 | D16: 2015 | E16: 3,000 | F16: 2,000 | G16: 1,000 | H16: 보문면 할매·할배의날 : 2,000
A17: 주민복지과 | B17: 할매·할배의날 행사 | C17: 개포면 체육회 | D17: 2015 | E17: 2,000 | F17: 2,000 | G17: 0 | H17: 개포면 할매·할배의날 : 2,000
A18: 주민복지과 | B18: 운영비 | C18: 대한 노인회 (예쳔군지회) | D18: 2015 | E18: 38,800 | F18: 25,000 | G18: 13,800 | H18: 인건비 : 18,000 여비 및 회의비 : 7,000
A19: 주민복지과 | B19: 예천풍경그림전 개최 | C19: 예린회 | D19: 2015 | E19: 3,600 | F19: 3,000 | G19: 600 | H19: 예천풍경그림전 개최 : 3,000
A20: 주민복지과 | B20: 예묵회 정기전시회 개최 | C20: 예묵회 | D20: 2015 | E20: 8,740 | F20: 3,000 | G20: 5,740 | H20: 정기전시회 개최 : 3,000
A21: 주민복지과 | B21: 예천꽃꽂이회 작품전 개최 | C21: 예천 꽃꽂이회 | D21: 2015 | E21: 8,000 | F21: 3,000 | G21: 5,000 | H21: 꽃꽂이 작품전시회 개최 : 3,000
A22: 주민복지과 | B22: 여성합창단 정기연주회 개최 | C22: 예천여성 합창단 | D22: 2015 | E22: 21,000 | F22: 20,000 | G22: 1,000 | H22: 강습비 : 12,000 정기연주회 개최 : 8,000
A23: 주민복지과 | B23: 귀화시험 대비반 운영 | C23: 예천군 다문화가족 지원센터 | D23: 2015 | E23: 5,000 | F23: 5,000 | G23: 0 | H23: 강사료 : 1,800 귀화시험 교재 : 1,500 기타운영비 : 1,700
A24: 주민복지과 | B24: 다문화가족 출산용품 지원 | C24: 예천군 여성단체 협의회 | D24: 2015 | E24: 6,000 | F24: 6,000 | G24: 0 | H24: 출산용품 지원 : 6,000
A25: 주민복지과 | B25: 청소년범죄 예방활동 및 청소년 선도교육 | C25: 법무부 법사랑위원 예천지구협의회 | D25: 2015 | E25: 22,195 | F25: 20,000 | G25: 2,195 | H25: 자매결연 청소년 결연금 : 4,600 동서화합 자매결연(정읍 방문) : 3,600 열린 준법교실 검사님과 대화 : 2,820 선도예방전문화 교육 : 2,025 한마음대축제 : 5,250 순찰활동 및 물품나눔 : 1,705
A26: 총무과 소계 | B26: 3건 | E26: =SUM(E27:E29) -> 14,190 | F26: 12,900 | G26: 1,290
A27: 총무과 | B27: 정보화마을 정보센터 주민정보화교육 지원 | C27: 정보화마을(금당실,회룡포,국사골) | D27: 2015 | E27: 3,300 | F27: 3,000 | G27: 300 | H27: 정보화마을 주민정보화교육 : 3,000
A28: 총무과 | B28: 정보화마을 전자 상거래포장재 지원 | C28: 정보화마을(금당실,회룡포,국사골) | D28: 2015 | E28: 6,930 | F28: 6,300 | G28: 630 | H28: 정보화마을 전자상거래용 포장재 : 6,300
A29: 총무과 | B29: 정보화마을 Fest (농산물판매부스) 지원 | C29: 정보화마을(금당실,회룡포,국사골) | D29: 2015 | E29: 3,960 | F29: 3,600 | G29: 360 | H29: 정보화마을 Festa 참가 (농산물판매부스) : 3,600
A30: 새마을경제과 소계 | B30: 4건 | E30: =SUM(E31:E34) -> 180,610 | F30: 162,000 | G30: 18,610
A31: 새마을경제과 | B31: 예천군 새마을회 운영비 지원 | C31: 예천군새마을회 | D31: 2015 | E31: 91,160 | F31: 80,000 | G31: 11,160 | H31: 지회운영 관리비 : 45,000 읍면 운영비 : 28,800 국민독서 경진대회 : 1,700 2015 결산 및 평가대회 : 3,000 신도청시대 칭찬친절운동 : 1,500
A32: 새마을경제과 | B32: 바르게살기운동 예천군협의회 운영비 지원 | C32: 바르게살기운동 예천군협의회 | D32: 2015 | E32: 34,850 | F32: 32,000 | G32: 2,850 | H32: 사무국 운영비 : 16,400 조직관리 : 13,850 문화시민활동 전개사업 : 1,750
A33: 새마을경제과 | B33: 도시민초청투어 프로그램 | C33: 바르게살기운동 예천군협의회 | D33: 2015 | E33: 25,000 | F33: 25,000 | G33: 0 | H33: 차량비 : 16,000 식대 : 9,000
A34: 새마을경제과 | B34: 한국자유총연맹 예천군지회 운영비 지원 | C34: 한국자유총연맹 예천군지회 | D34: 2015 | E34: 29,600 | F34: 25,000 | G34: 4,600 | H34: 전국자유수호 웅변대회 : 2,000 각종 교육 및 행사 지원 : 3,520 지회운영비 : 13,200 분회 운영비 및 간부교육 : 6,280
A35: 문화관광과 소계 | B35: 3건 | E35: =SUM(E36:E38) -> 197,330 | F35: 182,980 | G35: 14,350
A36: 문화관광과 | B36: 예천문화원 운영비 지원 | C36: 예천 문화원 | D36: 2015 | E36: 135,330 | F36: 122,980 | G36: 12,350 | H36: 홈페이지 관리 : 3,000 사무용품 : 2,400 공공요금 등 : 6,600 정기총회 : 8,400 예천문화제 : 20,500 문화원활성화 사업 등 사업활동비 : 35,000 인건비 : 47,080
A37: 문화관광과 | B37: 2015 달집태우기 행사 | C37: 한국민족 예술인총연합예천지부 | D37: 2015 | E37: 12,000 | F37: 10,000 | G37: 2,000 | H37: 달집태우기 행사 : 10,000
A38: 문화관광과 | B38: 전국서예인 전통서법 강좌 교육사업 | C38: 초정서예 연구원 | D38: 2015 | E38: 50,000 | F38: 50,000 | G38: 0 | H38: 강사수당 : 38,400 보조강사수당 : 10,800 회의수당 : 800
A39: 건설교통과 소계 | B39: 4건 | E39: =SUM(E40:E43) -> 34,750 | F39: 34,750 | G39: 0
A40: 건설교통과 | B40: 교통사고예방을 위한 용품구입 | C40: 예천경찰 발전위원회 | D40: 2015 | E40: 21,650 | F40: 21,650 | G40: 0 | H40: 야광조끼 구입 : 3,900 야광지팡이 구입 : 4,000 야광반사지 구입 : 4,000 야광모자 구입 : 4,500 자전거 후미등 구입 : 1,000 전단지 구입 : 2,000 홍보용 문구류 구입 : 2,250
A41: 건설교통과 | B41: 사고예방안전 용품구입비지원 | C41: (사)전국모범운전자 연합회예천군지부 | D41: 2015 | E41: 3,000 | F41: 3,000 | G41: 0 | H41: 우의 구입 : 3,000
A42: 건설교통과 | B42: 교통안전교육 사업 및 예방활동지원 | C42: (사)전국모범운전자 연합회예천군지부 | D42: 2015 | E42: 7,000 | F42: 7,000 | G42: 0 | H42: 교통안전사업 활동비 : 7,000
A43: 건설교통과 | B43: 사고예방안전 용품구입비 지원 | C43: 경북녹색어머니 연합회예천지회 | D43: 2015 | E43: 3,100 | F43: 3,100 | G43: 0 | H43: 복장 : 1,800 우의 : 1,200 깃발 : 100
A44: 안전재난과 소계 | B44: 5건 | E44: =SUM(E45:E49) -> 32,000 | F44: 32,000 | G44: 0
A45: 안전재난과 | B45: 안전사고 예 방 및 각종재난 구호활동 | C45: 재난통신 지원예천 지구단 | D45: 2015 | E45: 4,000 | F45: 4,000 | G45: 0 | H45: 물놀이 안전관리 : 2,000 행사 안전관리요원 활동 : 1,500 행사용 노후장비 수리 등 : 500
A46: 안전재난과 | B46: 화재 및 재난 예방활동 | C46: 예천군의용 소방대연합회 | D46: 2015 | E46: 7,000 | F46: 7,000 | G46: 0 | H46: 화재 등 캠페인 활동 : 2,000 안전활동 참여자 식대 : 3,000 환경정화 및 봉사활동 : 2,000
A47: 안전재난과 | B47: 소방기술경연 체육대회 | C47: 예천군의용 소방대연합회 | D47: 2015 | E47: 10,000 | F47: 10,000 | G47: 0 | H47: 체육행사 준비 : 7,000 홍보물 제작 : 1,500 우수소방대 시상 : 1,500
A48: 안전재난과 | B48: 인명구조대 훈련 및 교통질서 등 재난안전활동 | C48: 예천군해병대전우회 | D48: 2015 | E48: 6,000 | F48: 6,000 | G48: 0 | H48: 자격취득 및 훈련 : 3,000 순찰차 유류구입 : 2,000 교통질서 및 안전활동 식대 : 1,000
A49: 안전재난과 | B49: 한천보트장 운영 | C49: 예천군해병대전우회 | D49: 2015 | E49: 5,000 | F49: 5,000 | G49: 0 | H49: 보트 유류구입 : 1,000 보트 수리 부품교체 : 1,500 어린이날 참가자 간식 : 2,500
A50: 문화체육사업소 소계 | B50: 24건 | E50: =SUM(E51:E74) -> 619,600 | F50: =SUM(F51:F74) -> 587,600 | G50: 32,000
A51: 문화체육사업소 | B51: 중·고연맹 대회 및 한일교류전경비 | C51: 한국중·고연맹회장 | D51: 2015 | E51: 80,000 | F51: 80,000 | G51: 0 | H51: 중·고연맹 대회 및 한일고류전 개최 : 80,000
A52: 문화체육사업소 | B52: 양궁대회 개최경비 | C52: 경상북도 양궁협회장 | D52: 2015 | E52: 35,000 | F52: 35,000 | G52: 0 | H52: 양궁대회 개최 : 30,000 봉사활동 지원 : 5,000
A53: 문화체육사업소 | B53: 학교양궁 육성 지원 | C53: 경상북도 양궁협회장 | D53: 2015 | E53: 50,000 | F53: 50,000 | G53: 0 | H53: 학교양궁 육성 지원 : 50,000
A54: 문화체육사업소 | B54: 양궁대회 및 전지훈련 유치활동비 | C54: 경상북도 양궁협회장 | D54: 2015 | E54: 15,000 | F54: 15,000 | G54: 0 | H54: 대회 및 전저훈련 유치활동 : 15,000
A55: 문화체육사업소 | B55: 경북양궁협회운영비 | C55: 경상북도 양궁협회장 | D55: 2015 | E55: 39,000 | F55: 17,000 | G55: 22,000 | H55: 경북양궁협회 운영비 : 17,000
A56: 문화체육사업소 | B56: 육상꿈나무 선수 지원 | C56: 예천군체육회육상경기연맹 | D56: 2015 | E56: 10,800 | F56: 10,800 | G56: - | H56: 육상꿈나무 선수 지원 : 10,800
A57: 문화체육사업소 | B57: 각종 육상경기대회 및 전지훈련 유치 활동비 지원 | C57: 예천군 체육회 | D57: 2015 | E57: 40,000 | F57: 40,000 | G57: - | H57: 기념품 : 20,000 선수단 및 지도자 식대 : 19,000 차량 임차료 : 1,000
A58: 문화체육사업소 | B58: 체육회 간사 인건비 지원 | C58: 예천군 체육회 | D58: 2015 | E58: 14,000 | F58: 14,000 | G58: - | H58: 체육회 운영비 : 14,000
A59: 문화체육사업소 | B59: 도민체전 대비 학교체육강화 및 종목별 훈련비 지원 | C59: 예천군 체육회 | D59: 2015 | E59: 15,000 | F59: 15,000 | G59: - | H59: 종목별 훈련비 : 15,000
A60: 문화체육사업소 | B60: 우수선수 및 교기육성 지원 | C60: 예천군 체육회 | D60: 2015 | E60: 20,000 | F60: 20,000 | G60: - | H60: 우수선수 훈련비 : 18,000 대회 출전비 : 2,000
A61: 문화체육사업소 | B61: 예천군 체육회 운영비 지원 | C61: 예천군 체육회 | D61: 2015 | E61: 35,000 | F61: 25,000 | G61: 10,000 | H61: 우수선수 지원 : 13,000 일반운영비 등 : 10,500 난방유류구입 : 1,500
A62: 문화체육사업소 | B62: 체육회 사무국장 인건비 및 활동비 지원 | C62: 예천군 체육회 | D62: 2015 | E62: 23,800 | F62: 23,800 | G62: - | H62: 사무국장 인건비 등 : 23,800
A63: 문화체육사업소 | B63: 꿈나무 육상 지도자 지원 | C63: 예천군 체육회 | D63: 2015 | E63: 48,000 | F63: 48,000 | G63: - | H63: 꿈나무 육성 지도자 지원 : 48,000
A64: 문화체육사업소 | B64: 전국중고단축마라톤대회 개최경비 지원 | C64: 한국중고육상경기연맹 | D64: 2015 | E64: 50,000 | F64: 50,000 | G64: - | H64: 제1회 예천 도효자배 전국 고교 10km대회 겸 중학교 5km대회 개최 경비 : 50,000
A65: 문화체육사업소 | B65: 경북어르신 생활체육대회 참가경비 지원 | C65: 예천군 생활체육회 | D65: 2015 | E65: 10,000 | F65: 10,000 | G65: - | H65: 경북어르신 생활체육대회 참가경비 지원 : 10,000
A66: 문화체육사업소 | B66: 경상북도 종합 생활체육대회 참가경비 지원 | C66: 예천군 생활체육회 | D66: 2015 | E66: 45,000 | F66: 45,000 | G66: - | H66: 경상북도 종합 생활체육대회 참가경비 : 45,000
A67: 문화체육사업소 | B67: 2015. 제21회 예천군민 민속놀이대회 개최경비 지원 | C67: 예천군 생활체육회 | D67: 2015 | E67: 10,000 | F67: 10,000 | G67: - | H67: 예천군민 민속놀이대회 개최경비 : 10,000
A68: 문화체육사업소 | B68: 제19회 경북도지사기 생활체육 테니스대회 개최경비 | C68: 예천군 생활체육회 | D68: 2015 | E68: 10,000 | F68: 10,000 | G68: - | H68: 경북도지사기 생활체육 테니스대회 개최 : 10,000
A69: 문화체육사업소 | B69: 청소년클럽대항 생활체육대회 개최경비 지원 | C69: 예천군 생활체육회 | D69: 2015 | E69: 2,000 | F69: 2,000 | G69: - | H69: 청소년클럽대항 생활체육대회 개최 : 2,000
A70: 문화체육사업소 | B70: 2015. 축구 경북리그 출전경비 | C70: 예천군 생활체육회 | D70: 2015 | E70: 3,000 | F70: 3,000 | G70: - | H70: 축구 경북리그 출전경비 : 3,000
A71: 문화체육사업소 | B71: 2015. 생활체육회 간사 인건비 지원 | C71: 예천군 생활체육회 | D71: 2015 | E71: 12,000 | F71: 12,000 | G71: - | H71: 생활체육회 간사 인건비 : 12,000
A72: 문화체육사업소 | B72: 2015. 경북도지사기 종목별 생활체육대회 출전비 지원 | C72: 예천군 생활체육회 | D72: 2015 | E72: 30,000 | F72: 30,000 | G72: - | H72: 경북도지사기 종목별 생활체육대회 출전비 : 30,000
A73: 문화체육사업소 | B73: 2015. 각종목별 생활체육대회 유치 및 지원 활동비 | C73: 예천군 생활체육회 | D73: 2015 | E73: 12,000 | F73: 12,000 | G73: - | H73: 종목별 생활체육대회 유치 및 활동비 : 12,000
A74: 문화체육사업소 | B74: 군민건강 걷기대회 개최경비 지원 | C74: ㈜예천신문사 | D74: 2015 | E74: 10,000 | F74: 10,000 | G74: - | H74: 군민건강 걷기대회 개최경비(기념티) : 10,000
A75: 농정과 소계 | B75: 1건 | E75: =SUM(E76) -> 110,000 | F75: =SUM(F76) -> 100,000 | G75: 10,000
A76: 농정과 | B76: 단샘 생강 작목반 시설개선 및 기자재구입 | C76: 단샘 생강 작목반 | D76: 2015 | E76: 110,000 | F76: 100,000 | G76: 10,000 | H76: 비가림 시설 및 옹벽 설치 : 65,000 기자재 구입 : 35,000

Sheet Sheet3
